bitfinex/quotes_ETHUSD_20250722
["timestamp","ask_amount","ask_price","bid_price","bid_amount"]
[1753194131116,7.07916309,3659.3,3659.2,1e-08]
[1753194131273,9.41566859,3659.3,3659.2,1e-08]
[1753194132407,11.59116309,3659.3,3659.2,1e-08]
[1753194132612,7.07916309,3659.3,3659.2,1e-08]
[1753194132815,11.59116309,3659.3,3659.2,1e-08]
[1753194135194,41.59116309,3659.3,3659.2,1e-08]
[1753194137460,36.61936309,3659.3,3659.2,1e-08]
[1753194137737,41.15655485,3659.3,3659.2,1e-08]
[1753194137901,44.15655485,3659.3,3659.2,1e-08]
[1753194138097,53.19582287,3659.3,3659.2,1e-08]
[1753194138901,44.15655485,3659.3,3659.2,1e-08]
[1753194139306,44.15555485,3659.3,3659.2,1e-08]
[1753194140211,5.73343538,3658.4,3658.3,1e-08]
[1753194140537,41.01193538,3658.4,3658.3,1e-08]
[1753194140830,41.47603538,3658.4,3658.3,1e-08]
[1753194141800,5.73343538,3658.4,3658.3,1e-08]
[1753194142008,10.24143538,3658.4,3658.3,1e-08]
[1753194142308,5.73343538,3658.4,3658.3,1e-08]
[1753194142514,10.24143538,3658.4,3658.3,1e-08]
[1753194142714,2.73337692,3658.5,3658.3,1e-08]
[1753194143013,4.508,3658.5,3658.3,1e-08]
[1753194143211,0.7741,3659.1,3658.3,1e-08]
[1753194143460,0.30811929,3659.2,3658.4,1.255]
[1753194143724,2.73274673,3659.4,3658.6,0.55]
[1753194143896,2.73238974,3659.8,3658.8,0.55]
[1753194144103,2.73246007,3659.8,3659.2,0.55]
[1753194144302,2.73236382,3659.9,3659.3,0.4507]
[1753194144528,4.507,3660.4,3659.1,0.02832912]
[1753194144713,2.73252894,3659.7,3659.1,0.001]
[1753194144910,2.73255935,3659.6,3659.1,0.001]
[1753194145315,2.73264022,3659.5,3659.2,0.4507]
[1753194145602,2.73239346,3659.8,3659.2,0.4507]
[1753194145944,7.23823548,3660.1,3659.3,0.55]
[1753194146237,2.73241079,3659.8,3659.3,0.55]
[1753194146538,3.22916889,3660.3,3659.3,0.55]
[1753194146710,2.73251885,3659.7,3659.3,0.55]
[1753194146918,3.0,3660.2,3659.3,1.0007]
[1753194147115,2.73248485,3659.7,3659.3,1.0007]
[1753194147312,2.73239299,3659.8,3659.4,0.4507]
[1753194147526,0.4641,3660.6,3659.4,0.4507]
[1753194147527,3.40690683,3660.8,3659.6,0.55]
[1753194147740,0.41606636,3660.6,3659.7,0.4507]
[1753194147904,2.73210751,3660.2,3659.7,0.4507]
[1753194148102,7.23578704,3660.7,3659.8,3.7330861]
[1753194148325,1.252,3661.1,3659.8,3.73307367]
[1753194148545,2.73076592,3662.0,3659.5,3.5036526]
[1753194148546,1.10158971,3661.0,3660.2,0.55]
[1753194148707,2.73179239,3660.7,3660.2,1.0007]
[1753194148903,2.73149412,3661.0,3660.0,0.55]
[1753194149109,2.73191111,3660.5,3660.0,0.55]
[1753194149328,2.73202317,3660.3,3660.0,0.55]
[1753194149609,2.73216578,3660.1,3660.0,0.55]
[1753194149836,2.73195011,3660.4,3660.0,0.55]
[1753194150210,2.73216578,3660.1,3660.0,0.55]
[1753194150410,2.73211808,3660.2,3660.0,0.55]
[1753194150622,2.73203188,3660.3,3660.0,0.55]
[1753194150820,0.136,3660.0,3659.2,0.55]
[1753194151019,2.73232923,3659.9,3659.5,0.7559]
[1753194151343,2.73251107,3659.7,3659.5,0.7559]
[1753194151546,0.27320319,3660.3,3659.6,1.0007]
[1753194151744,2.73217421,3660.1,3659.6,1.0007]
[1753194152038,2.73207812,3660.3,3659.8,0.55]
[1753194152243,2.73202407,3660.3,3659.8,0.55]
[1753194152468,0.136,3659.8,3659.6,0.55]
[1753194152752,2.8684115,3659.8,3659.5,0.7559]
[1753194153044,2.7318942,3660.5,3659.6,1.0007]
[1753194153542,2.73237978,3659.9,3659.6,0.55]
[1753194153746,2.73218201,3660.1,3659.7,0.4507]
[1753194153924,2.73232212,3659.9,3659.8,0.4507]
[1753194154245,0.136,3659.8,3659.7,3.2824644]
[1753194154449,0.136,3659.8,3659.7,4.43194353]
[1753194154757,0.136,3659.8,3659.7,2.15017913]
[1753194154905,0.136,3659.8,3659.7,4.88264353]
[1753194155821,3.2284365,3661.1,3660.2,0.55]
[1753194156026,2.7315067,3661.0,3660.5,0.55]
[1753194156224,2.7315067,3661.0,3660.7,0.55]
[1753194156421,0.002,3661.2,3660.7,1.0007]
[1753194156750,2.7315836,3660.9,3660.7,1.0007]
[1753194156925,2.73164335,3660.8,3660.7,1.0007]
[1753194157319,2.73164335,3660.8,3660.7,0.55]
[1753194157524,0.002,3661.2,3660.7,0.55]
[1753194157726,2.73158607,3660.9,3660.7,0.55]
[1753194158050,2.73164335,3660.8,3660.7,0.55]
[1753194158553,2.73151247,3661.0,3660.7,0.55]
[1753194158554,2.73148554,3661.1,3660.7,1.0007]
[1753194158750,0.002,3661.2,3660.7,0.55]
[1753194158955,2.73149412,3661.0,3660.9,0.55]
[1753194159319,2.73158774,3660.9,3660.7,0.55]
[1753194159517,2.86764335,3660.8,3660.7,0.55]
[1753194159726,0.136,3660.8,3660.7,0.55]
[1753194160148,2.86764335,3660.8,3660.7,0.55]
[1753194160349,2.73186723,3660.5,3660.2,0.7549]
[1753194160555,2.7320165,3660.3,3660.2,0.7549]
[1753194160714,2.73216578,3660.1,3660.0,4.495]
[1753194160919,0.136,3660.2,3660.1,0.55]
[1753194161120,0.002,3661.2,3660.3,0.55]
[1753194161321,0.002,3661.2,3660.5,0.55]
[1753194161322,2.73162598,3660.9,3660.5,0.55]
[1753194161633,2.73164335,3660.8,3660.7,0.55]
[1753194161947,2.73337257,3661.2,3660.7,1.0007]
[1753194162161,2.73142498,3661.1,3660.9,0.55]
[1753194162464,2.73149412,3661.0,3660.9,0.55]
[1753194163319,2.73144399,3661.1,3660.9,0.55]
[1753194163544,0.002,3661.2,3661.1,3.28141951]
[1753194163751,0.002,3661.2,3661.1,13.24271951]
[1753194163951,0.002,3661.2,3661.1,13.69341951]
[1753194164130,0.002,3661.2,3661.1,10.962]
[1753194164761,0.002,3661.2,3661.1,13.69341951]
[1753194164923,0.002,3661.2,3661.1,16.30246285]
[1753194165127,0.002,3661.2,3661.1,19.30246285]
[1753194165515,0.002,3661.2,3661.1,16.57104334]
[1753194165722,0.002,3661.2,3661.1,6.251]
[1753194166020,0.002,3661.2,3660.8,5.4986]
[1753194166021,2.73156649,3661.0,3660.8,5.4986]
[1753194166217,2.73143857,3661.1,3660.8,5.4986]
[1753194166457,0.002,3661.2,3661.0,0.55]
[1753194166959,0.002,3661.2,3661.1,0.4507]
[1753194167256,2.86749412,3661.0,3660.9,0.55]
[1753194167453,2.86749412,3661.0,3660.9,5.04]
[1753194167956,0.136,3661.0,3660.9,5.04]
[1753194168152,2.86749412,3661.0,3660.9,5.04]
[1753194168356,0.136,3661.0,3660.9,5.04]
[1753194168723,2.86749412,3661.0,3660.9,5.04]
[1753194168923,0.136,3661.0,3660.9,5.04]
[1753194169157,0.136,3661.0,3660.9,5.5053]
[1753194169321,0.002,3661.2,3661.1,2.73141951]
[1753194169530,0.002,3661.2,3661.1,1.36521419]
[1753194169733,0.002,3661.2,3661.1,1.83051419]
[1753194169940,0.002,3661.2,3661.1,1.8032]
[1753194170771,0.002,3661.2,3661.1,6.5132]
[1753194170984,0.002,3661.2,3661.1,10.5359]
[1753194171232,0.002,3661.2,3661.1,10.5349]
[1753194171870,0.002,3661.2,3661.1,11.0002]
[1753194173575,0.002,3661.2,3661.1,14.83163951]
[1753194174350,0.002,3661.2,3661.1,17.83163951]
[1753194174751,0.002,3661.2,3661.1,21.83163951]
[1753194175069,0.002,3661.2,3661.1,21.96763951]
[1753194175459,0.136,3662.0,3661.9,2.73082279]
[1753194175659,0.136,3662.0,3661.9,8.56812279]
[1753194175984,0.136,3662.0,3661.9,15.34705846]
[1753194176186,0.002,3662.8,3662.3,0.55]
[1753194176389,0.136,3662.6,3662.5,3.28037542]
[1753194176538,0.138,3662.8,3662.7,4.03032633]
[1753194176737,0.138,3662.8,3662.7,8.54162859]
[1753194176944,0.002,3662.8,3662.7,3.8487572]
[1753194177241,0.002,3662.8,3662.7,8.97862633]
[1753194177437,0.002,3662.8,3662.7,11.97862633]
[1753194178978,0.002,3662.8,3662.7,15.97862633]
[1753194179793,0.002,3662.8,3662.7,8.7654]
[1753194179962,0.002,3662.8,3662.7,15.97762633]
[1753194180272,0.002,3662.8,3662.7,18.33302605]
[1753194180878,0.002,3662.8,3662.7,27.37229407]
[1753194181449,0.002,3662.8,3662.7,15.83079972]
[1753194181645,0.002,3662.8,3662.7,4.0]
[1753194181849,2.86819436,3662.8,3662.7,4.479]
[1753194182381,0.138,3662.8,3662.7,4.479]
[1753194182757,0.138,3662.8,3662.7,5.029]
[1753194183586,0.138,3662.8,3662.7,9.04242633]
[1753194183884,0.002,3662.8,3662.7,13.22243076]
[1753194184882,0.002,3662.8,3662.7,13.35843076]
[1753194185851,0.002,3662.8,3662.7,17.35843076]
[1753194186588,0.002,3663.0,3662.8,7.09335179]
[1753194186762,0.002,3663.0,3662.8,16.59791981]
[1753194186964,0.002,3663.0,3662.8,23.29701157]
[1753194187354,0.002,3663.0,3662.9,7.08547726]
[1753194187552,0.002,3663.0,3662.9,12.02577726]
[1753194187783,0.002,3663.0,3662.9,12.16177726]
[1753194187998,0.002,3663.0,3662.9,16.16177726]
[1753194188160,0.002,3663.0,3662.9,17.68336398]
[1753194189468,0.002,3663.3,3663.2,7.03825367]
[1753194189669,0.002,3663.3,3663.2,22.06325367]
[1753194189859,0.002,3663.3,3663.2,22.19925367]
[1753194190058,0.002,3663.3,3663.2,22.66455367]
[1753194190259,0.002,3663.3,3663.2,36.37457367]
[1753194190456,0.002,3663.6,3663.5,3.27963013]
[1753194190805,0.002,3664.0,3663.8,0.55]
[1753194190977,0.002,3664.0,3663.9,11.60502545]
[1753194191157,0.002,3664.0,3663.9,12.17903213]
[1753194191353,0.002,3664.0,3663.9,8.88703656]
[1753194191575,0.002,3664.0,3663.9,17.35903656]
[1753194194167,0.002,3664.0,3663.9,12.88703656]
[1753194194491,0.002,3664.0,3663.9,12.33703656]
[1753194194790,0.002,3664.0,3663.9,16.80703656]
[1753194195292,0.002,3664.0,3663.9,17.35703656]
[1753194196296,0.002,3664.5,3664.3,3.27903419]
[1753194196469,0.002,3664.5,3664.3,25.48121757]
[1753194196669,0.002,3664.5,3664.3,26.08251757]
[1753194196883,0.002,3664.5,3664.3,22.08251757]
[1753194197582,0.002,3664.5,3664.3,13.04324955]
[1753194197771,0.002,3664.5,3664.3,4.4801]
[1753194197976,0.002,3664.5,3664.3,8.9471]
[1753194198383,0.002,3664.5,3664.3,8.153]
[1753194198605,0.002,3664.5,3664.3,8.017]
[1753194198789,0.138,3664.5,3664.3,4.466]
[1753194198989,0.4408,3664.4,3664.3,4.466]
[1753194199185,0.002,3664.4,3664.3,4.466]
[1753194199385,0.002,3664.4,3664.3,5.016]
[1753194199764,0.002,3664.4,3664.3,6.71162926]
[1753194199997,0.002,3664.4,3664.3,9.57666345]
[1753194200400,0.002,3664.4,3664.3,9.14016345]
[1753194200797,0.002,3664.4,3664.3,9.57666345]
[1753194200968,0.002,3664.4,3664.3,12.57666345]
[1753194201501,0.002,3664.4,3664.3,17.28666345]
[1753194202068,0.002,3664.4,3664.3,12.57666345]
[1753194202573,0.002,3664.4,3664.3,16.14016345]
[1753194202968,0.002,3664.4,3664.3,16.44066345]
[1753194203988,1e-08,3664.4,3664.3,23.5568752]
[1753194204307,1e-08,3664.4,3664.3,28.2668752]
[1753194204605,1e-08,3664.4,3664.3,23.5568752]
[1753194204780,1e-08,3664.4,3664.3,24.2668752]
[1753194205101,1e-08,3664.5,3664.4,9.94435972]
[1753194205302,1e-08,3664.5,3664.4,13.07995148]
[1753194205905,1e-08,3664.5,3664.4,17.54095148]
[1753194206905,1e-08,3664.5,3664.4,14.66495148]
[1753194207717,1e-08,3664.5,3664.4,10.20395148]
[1753194208022,1e-08,3664.5,3664.4,14.97835972]
[1753194208220,1e-08,3664.5,3664.4,15.52835972]
[1753194208715,1e-08,3664.5,3664.4,15.96485972]
[1753194208918,1e-08,3664.5,3664.4,11.06835972]
[1753194209225,0.43880001,3664.5,3664.4,4.0]
[1753194209515,0.43880001,3664.5,3664.4,8.459]
[1753194209736,3.16768526,3664.5,3664.4,8.459]
[1753194209897,0.43880001,3664.5,3664.4,8.459]
[1753194210291,0.43880001,3664.5,3664.4,4.459]
[1753194210721,0.43880001,3664.5,3664.1,2.72914743]
[1753194210922,1e-08,3664.5,3664.4,2.72895972]
[1753194211135,1e-08,3664.5,3664.4,12.47424931]
[1753194211423,0.43880001,3664.5,3664.4,4.458]
[1753194211643,1e-08,3664.5,3664.4,7.73695972]
[1753194211843,1e-08,3664.5,3664.4,8.78356584]
[1753194212336,1e-08,3664.5,3664.4,16.93006584]
[1753194212994,1e-08,3664.5,3664.4,17.06606584]
[1753194213188,1e-08,3664.5,3664.4,21.06606584]
[1753194213433,1e-08,3664.5,3664.4,23.47227759]
[1753194214128,1e-08,3664.5,3664.4,24.26647759]
[1753194214794,1e-08,3664.5,3664.4,24.38692037]
[1753194214997,1e-08,3664.5,3664.4,12.69226584]
[1753194215202,1e-08,3664.5,3664.4,10.41495972]
[1753194215401,1e-08,3664.5,3664.4,11.86995972]
[1753194215703,1e-08,3664.5,3664.4,14.86995972]
[1753194217544,1e-08,3664.5,3664.4,15.30645972]
[1753194217837,1e-08,3664.5,3664.4,23.19017147]
[1753194218021,1e-08,3664.5,3664.4,33.47526323]
[1753194218346,0.002,3665.3,3665.2,3.27836407]
[1753194218677,0.002,3665.3,3665.2,10.86836407]
[1753194218841,0.002,3665.3,3665.2,15.30486407]
[1753194219042,1e-08,3665.3,3665.2,15.30486407]
[1753194219336,1e-08,3665.3,3665.2,27.76384235]
[1753194219720,1e-08,3665.3,3665.2,27.96824666]
[1753194220303,0.002,3666.0,3665.9,3.27784309]
[1753194220502,0.002,3666.0,3665.9,20.51072961]
[1753194220714,0.002,3666.0,3665.9,21.08322961]
[1753194220915,0.002,3666.0,3665.9,22.185749]
[1753194221529,0.002,3666.0,3665.9,12.75686248]
[1753194221715,0.002,3666.0,3665.9,6.41384309]
[1753194221930,0.002,3666.0,3665.9,10.86484309]
[1753194222334,0.002,3666.0,3665.9,20.29372961]
[1753194223248,0.002,3666.0,3665.9,19.85722961]
[1753194223550,0.002,3666.0,3665.9,24.29372961]
[1753194223845,0.002,3666.0,3665.9,14.86384309]
[1753194224548,0.002,3666.0,3665.9,7.999]
[1753194224845,0.002,3666.0,3665.9,7.449]
[1753194225149,0.002,3666.0,3665.9,10.72684309]
[1753194225645,0.002,3666.0,3665.9,6.27784309]
[1753194225853,0.002,3666.0,3665.9,10.72684309]
[1753194226424,0.002,3666.0,3665.9,8.25340941]
[1753194226620,0.002,3666.0,3665.9,10.9812525]
[1753194227016,0.002,3666.0,3665.9,11.90093615]
[1753194227211,0.002,3666.0,3665.9,12.03693615]
[1753194227549,0.002,3666.0,3665.9,22.28262267]
[1753194228112,0.002,3666.0,3665.9,26.28262267]
[1753194229451,0.002,3666.0,3665.9,12.41193615]
[1753194229619,0.002,3666.0,3665.9,16.85793615]
[1753194229949,0.002,3666.0,3665.9,11.70040941]
[1753194230151,0.4566,3666.0,3665.9,7.25440941]
[1753194230352,0.4566,3666.0,3665.9,11.70040941]
[1753194230526,3.93676868,3666.0,3665.9,4.25440941]
[1753194230854,3.93676868,3666.0,3665.9,3.87330941]
[1753194231015,0.7524,3665.3,3665.1,6.547]
[1753194231223,0.7524,3665.3,3665.2,4.445]
[1753194231446,0.7524,3665.3,3665.2,4.995]
[1753194231749,1.107,3665.3,3665.2,4.995]
[1753194232136,1.107,3665.3,3665.2,4.445]
[1753194232343,1.107,3665.3,3665.2,4.995]
[1753194233455,0.7524,3665.3,3665.2,7.72336407]
[1753194233752,0.8109,3665.8,3665.3,0.55]
[1753194233945,0.136,3665.5,3665.4,4.444]
[1753194234123,0.136,3665.5,3665.4,7.1722152]
[1753194234532,0.136,3665.5,3665.4,7.7222152]
[1753194234858,0.002,3666.0,3665.4,7.7222152]
[1753194234859,0.138,3666.0,3665.8,2.72791341]
[1753194235152,0.138,3666.0,3665.9,7.72084309]
[1753194235357,0.138,3666.0,3665.9,4.993]
[1753194235935,0.138,3666.0,3665.5,0.55]
[1753194235936,0.4926,3666.0,3665.5,0.55]
[1753194236258,0.3546,3665.9,3665.7,0.55]
[1753194236454,0.3546,3665.9,3665.8,4.993]
[1753194236640,0.002,3666.0,3665.9,0.55]
[1753194238257,0.002,3666.0,3665.9,3.27784309]
[1753194239041,0.002,3666.0,3665.9,0.55]
[1753194239361,0.002,3666.0,3665.9,3.27784309]
[1753194239561,0.002,3666.0,3665.9,4.77929911]
[1753194240237,0.002,3666.0,3665.9,4.32272068]
[1753194240637,0.002,3666.0,3665.9,4.75202068]
[1753194240838,2.72905678,3667.0,3665.9,4.75202068]
[1753194240839,0.002,3668.5,3666.4,1.64]
[1753194241038,0.002,3668.5,3668.4,0.55]
[1753194241274,0.002,3668.5,3668.4,4.99]
[1753194241438,0.3586,3668.5,3668.4,4.99]
[1753194242055,1.1795,3668.5,3668.4,4.989]
[1753194242560,0.8229,3668.5,3668.4,4.989]
[1753194242724,0.8229,3668.5,3668.4,3.27598408]
[1753194242725,0.002,3668.5,3668.4,3.27598408]
[1753194242925,0.002,3668.5,3668.4,8.59622723]
[1753194243125,0.002,3668.5,3668.4,9.13426739]
[1753194243331,0.002,3668.5,3668.4,9.13427923]
[1753194243763,0.002,3668.5,3668.4,8.70497923]
[1753194243934,0.002,3668.5,3668.4,8.10477001]
[1753194244130,0.002,3668.5,3668.4,11.10477001]
[1753194244336,0.002,3668.5,3668.4,11.53407001]
[1753194244662,0.002,3668.5,3668.4,11.10377001]
[1753194244961,0.002,3668.5,3668.4,11.30027196]
[1753194247050,0.002,3668.5,3668.4,13.25331997]
[1753194247371,0.002,3668.5,3668.4,8.38601997]
[1753194247549,0.002,3668.5,3668.4,12.82201997]
[1753194247752,0.002,3668.5,3668.4,1.13628788]
[1753194247935,0.7573,3668.5,3668.4,4.88528788]
[1753194248339,0.7573,3668.5,3668.4,5.43528788]
[1753194248873,0.002,3668.5,3668.4,5.43528788]
[1753194249662,0.002,3668.5,3668.4,4.88528788]
[1753194249663,3.08450977,3668.5,3668.4,4.88528788]
[1753194249850,0.002,3668.5,3668.4,4.88428788]
[1753194250050,0.002,3668.5,3668.4,0.45028788]
[1753194250246,0.56115429,3668.5,3668.4,5.43428788]
[1753194250447,3.28706406,3668.5,3668.4,5.43428788]
[1753194250654,0.56115429,3668.5,3668.4,5.43428788]
[1753194250869,0.002,3668.5,3668.4,5.43428788]
[1753194251068,0.002,3668.5,3668.4,10.14428788]
[1753194252875,0.002,3668.5,3668.4,5.71028788]
[1753194253068,0.002,3668.5,3668.4,10.14328788]
[1753194253391,0.002,3668.5,3668.4,10.14228788]
[1753194253555,0.3586,3668.5,3668.4,10.14228788]
[1753194253760,3.08450977,3668.5,3668.4,10.14228788]
[1753194253955,3.67933815,3668.5,3668.4,9.59228788]
[1753194254374,0.59682838,3668.5,3668.4,9.59228788]
[1753194254553,0.002,3668.5,3668.4,10.14228788]
[1753194254759,0.002,3668.5,3668.4,12.86827196]
[1753194255361,0.002,3668.5,3668.4,13.29757196]
[1753194256388,0.002,3668.5,3668.4,5.71028788]
[1753194256549,3.85710977,3668.5,3668.4,0.45028788]
[1753194256897,7.52920322,3668.5,3668.4,1e-08]
[1753194257497,37.52920322,3668.5,3668.4,1e-08]
[1753194257674,2.72687609,3667.2,3667.1,4.71]
[1753194257994,2.72711464,3666.9,3666.5,4.71]
[1753194258208,2.72711464,3666.9,3666.6,4.0]
[1753194258358,2.72711464,3666.9,3666.7,0.55]
[1753194258560,2.72706466,3667.0,3666.6,4.0]
[1753194258767,2.72724793,3666.7,3666.6,4.0]
[1753194258969,2.72769428,3666.1,3666.0,4.71]
[1753194259283,2.72769428,3666.1,3666.0,4.43]
[1753194259491,2.72789272,3665.9,3665.7,0.001]
[1753194259683,2.7279175,3665.8,3665.7,0.001]
[1753194259996,3.83150925,3665.8,3665.7,0.001]
[1753194260181,3.83150925,3665.8,3665.7,4.431]
[1753194261271,3.5587175,3665.8,3665.7,4.431]
[1753194261777,3.8153175,3665.8,3665.7,4.431]
[1753194261984,3.8153175,3665.8,3665.7,0.001]
[1753194262304,3.8153175,3665.8,3665.7,4.431]
[1753194263997,3.8153175,3665.8,3665.7,0.001]
[1753194264196,4.46962847,3665.8,3665.7,0.001]
[1753194265818,4.21302847,3665.8,3665.7,0.001]
[1753194266310,4.46962847,3665.8,3665.7,0.001]
[1753194266801,4.21302847,3665.8,3665.7,0.001]
[1753194267579,4.46962847,3665.8,3665.7,0.001]
[1753194268797,4.46962847,3665.8,3665.7,0.25408753]
[1753194270069,4.46962847,3665.8,3665.7,0.001]
[1753194271000,7.39522847,3665.8,3665.7,0.001]
[1753194271172,11.82222847,3665.8,3665.7,1e-08]
[1753194272364,7.39522847,3665.8,3665.7,1e-08]
[1753194272568,7.13862847,3665.8,3665.7,1e-08]
[1753194273806,4.13862847,3665.8,3665.7,1e-08]
[1753194276469,7.39522847,3665.8,3665.7,1e-08]
[1753194280114,4.13862847,3665.8,3665.7,1e-08]
[1753194281483,4.39522847,3665.8,3665.7,1e-08]
[1753194281879,11.81822847,3665.8,3665.7,1e-08]
[1753194282389,11.56162847,3665.8,3665.7,1e-08]
[1753194282614,11.81822847,3665.8,3665.7,1e-08]
[1753194282930,11.56162847,3665.8,3665.7,1e-08]
[1753194283229,11.81822847,3665.8,3665.7,1e-08]
[1753194283940,41.81822847,3665.8,3665.7,1e-08]
[1753194284234,50.81953574,3665.8,3665.7,1e-08]
[1753194284535,3.53333419,3664.3,3663.9,0.001]
[1753194284700,3.53333419,3664.3,3664.2,0.25442987]
[1753194285200,3.53333419,3664.3,3664.2,0.25443621]
[1753194285900,3.53333419,3664.3,3664.2,1e-08]
[1753194285901,6.78993419,3664.3,3664.2,1e-08]
[1753194286239,6.51168112,3663.7,3663.6,1e-08]
[1753194286420,20.20515632,3663.7,3662.0,1.01729681]
[1753194286602,6.52130273,3663.0,3662.0,0.20729681]
[1753194286801,10.94330273,3663.0,3661.8,0.4315]
[1753194287040,5.73037542,3662.5,3661.6,4.422]
[1753194287339,5.73037542,3662.5,3661.3,4.0]
[1753194287340,10.95187542,3662.5,3661.3,4.0]
[1753194287629,10.95187542,3662.5,3661.1,3.0]
[1753194287630,11.88056887,3662.5,3661.1,6.16818482]
[1753194287834,3.0,3662.4,3661.1,3.4368]
[1753194287995,2.73134491,3661.2,3661.1,3.0]
[1753194288195,3.0044794,3661.2,3661.1,3.0]
[1753194288446,2.73134491,3661.2,3661.1,3.0]
[1753194288639,2.7313318,3661.3,3660.7,5.6561]
[1753194288933,3.0,3661.4,3660.1,0.4368]
[1753194289136,2.73134491,3661.2,3660.1,4.8588]
[1753194289299,2.73179449,3660.6,3660.0,0.8245]
[1753194289499,2.73179197,3660.7,3660.0,0.8245]
[1753194289695,30.0,3660.6,3659.1,2.73385639]
[1753194289922,0.8061,3660.7,3659.2,5.6327]
[1753194290136,0.8061,3660.7,3659.3,0.4368]
[1753194290311,2.73217752,3660.1,3659.3,0.4368]
[1753194290499,2.73217394,3660.1,3659.4,4.421]
[1753194290703,1.0627,3660.7,3659.4,4.421]
[1753194290704,3.0,3660.2,3659.4,4.421]
[1753194291030,2.73216597,3660.1,3659.5,0.4368]
[1753194291235,3.03210436,3660.2,3659.5,0.4368]
[1753194291417,2.73172601,3660.7,3659.8,2.73232701]
[1753194291599,0.7666,3661.1,3659.9,0.4368]
[1753194291798,3.7666,3661.1,3659.6,0.4368]
[1753194291999,2.73210201,3660.2,3659.7,4.422]
[1753194292242,0.2566,3661.0,3659.8,0.4368]
[1753194292538,2.73208429,3660.3,3659.8,0.4368]
[1753194292698,0.3754626,3660.9,3659.9,0.9868]
[1753194293141,0.7666,3661.1,3660.0,4.422]
[1753194293142,2.732237,3660.1,3660.0,4.422]
[1753194293763,2.732382,3659.9,3659.6,0.55]
[1753194294035,3.0,3660.7,3659.6,0.55]
[1753194294036,2.73200801,3660.4,3659.7,4.422]
[1753194294212,2.73184059,3660.6,3659.7,4.422]
[1753194294412,2.73156873,3660.9,3659.6,0.9868]
[1753194294619,2.73215188,3660.2,3659.8,4.421]
[1753194294812,2.73220416,3660.1,3659.8,4.8578]
[1753194295027,2.73231509,3659.9,3659.6,0.55]
[1753194295232,0.136,3659.6,3659.3,0.55]
[1753194295546,2.73225599,3660.0,3659.7,4.422]
[1753194296106,2.73237928,3659.9,3659.8,4.422]
[1753194296343,0.54643609,3660.0,3659.8,4.422]
[1753194296647,0.136,3659.8,3659.5,2.73261249]
[1753194296941,2.73246955,3659.7,3659.6,4.421]
[1753194297352,2.73255501,3659.6,3659.3,0.55]
[1753194297561,0.8255,3660.2,3659.4,4.421]
[1753194297861,3.0,3660.4,3659.3,0.9868]
[1753194298035,2.73259403,3659.6,3659.5,4.422]
[1753194298360,2.73243274,3659.8,3659.5,4.422]
[1753194298536,2.73243274,3659.8,3659.5,4.8588]
[1753194298733,14.5,3660.1,3659.2,0.7749]
[1753194298940,2.73268841,3659.4,3659.3,4.422]
[1753194299141,2.73268841,3659.4,3659.2,0.7749]
[1753194299142,2.73231509,3659.9,3659.2,0.7749]
[1753194299464,2.86883777,3659.2,3659.1,0.001]
[1753194299629,2.86883777,3659.2,3659.1,4.422]
[1753194300041,2.86883777,3659.2,3659.1,0.001]
[1753194300357,6.54959625,3659.2,3659.1,0.001]
[1753194300569,0.56015848,3659.2,3659.1,0.001]
[1753194300727,0.37901,3660.3,3659.4,2.73266807]
[1753194301070,3.52766952,3660.4,3659.1,5.6214]
[1753194301071,14.5,3660.2,3659.1,0.7636]
[1753194301223,2.73224043,3660.0,3659.2,4.421]
[1753194301426,2.73283777,3659.2,3659.1,0.7636]
[1753194301623,5.73283777,3659.2,3659.1,0.001]
[1753194301861,2.73306184,3658.9,3658.8,0.001]
[1753194302020,5.73306184,3658.9,3658.8,1e-08]
[1753194302225,5.98966184,3658.9,3658.8,1e-08]
[1753194302420,21.40593718,3658.9,3658.8,1e-08]
[1753194303366,56.08253718,3658.9,3658.8,1e-08]
[1753194303659,6.48353538,3658.4,3658.3,1e-08]
[1753194303862,40.90353538,3658.4,3658.3,1e-08]
[1753194304064,5.73403324,3657.6,3657.5,1e-08]
[1753194304361,40.93893324,3657.6,3657.5,1e-08]
[1753194304562,55.43893324,3657.6,3657.5,1e-08]
[1753194304727,55.69553324,3657.6,3657.5,1e-08]
[1753194305064,56.11923025,3657.6,3657.5,1e-08]
[1753194305360,21.44163025,3657.6,3657.5,1e-08]
[1753194305566,25.86263025,3657.6,3657.5,1e-08]
[1753194305871,55.86263025,3657.6,3657.5,1e-08]
[1753194306070,56.11923025,3657.6,3657.5,1e-08]
[1753194306928,57.13991346,3657.6,3657.5,1e-08]
[1753194307362,6.51545659,3656.9,3656.8,1e-08]
[1753194307564,41.8614485,3656.9,3656.8,1e-08]
[1753194307859,42.1180485,3656.9,3656.8,1e-08]
[1753194308062,56.6180485,3656.9,3656.8,1e-08]
[1753194308237,57.1680485,3656.9,3656.8,1e-08]
[1753194309566,3.0,3655.4,3655.3,1e-08]
[1753194309751,2.73590325,3655.1,3655.0,1e-08]
[1753194309923,2.73590325,3655.1,3653.3,4.0]
[1753194309924,2.73717632,3653.4,3653.3,0.7885]
[1753194310123,0.754,3655.0,3652.8,0.4368]
[1753194310124,4.422,3653.9,3652.8,0.4368]
[1753194310542,3.0,3653.8,3652.1,0.7885]
[1753194310744,0.1368,3652.4,3652.3,0.4368]
[1753194311067,0.07841335,3652.4,3652.3,0.4368]
[1753194311282,0.07841335,3652.4,3652.3,3.46572121]
[1753194311445,0.07841335,3652.4,3652.3,3.99590071]